[Event "Niedersachsen-ch 2020"]
[Site "Verden-Aller"]
[Date "2020.01.04"]
[Round "6.7"]
[White "Sreyas Payyappat"]
[Black "Hoerstmann, Rudi"]
[Result "1/2-1/2"]
[ECO "B06"]
[WhiteElo "2166"]
[BlackElo "2241"]
[Annotator "NA"]
[PlyCount "78"]
[EventDate "2020.01.02"]
[EventType "swiss"]
[EventCountry "GER"]
[SourceTitle "playchess.com"]
[Source "ChessBase"]
[SourceQuality "1"]
[TimeControl "40/5400+30:1800+30"]

1. e4 {[%emt 0:00:00]} g6 {[%emt 0:00:00]} 2. d4 {[%emt 0:00:00]} Bg7 {[%emt 0:00:00]} 3. Nf3 {[%emt 0:00:00]} d6 {[%emt 0:00:00]} 4. Bd3 {[%emt 0:00:15]} Nf6 {[%emt 0:00:16]} 5. O-O {[%emt 0:00:19]} O-O {[%emt 0:00:14]} 6. h3 {[%emt 0:00:08]} Nbd7 {[%emt 0:02:37]} 7. Be3 {[%emt 0:00:35]} e5 {[%emt 0:00:15]} 8. d5 {[%emt 0:00:19]} Qe7 {[%emt 0:03:33]} 9. b4 {[%emt 0:09:47]} Ne8 {[%emt 0:03:49]} 10. c4 {[%emt 0:00:46]} f5 {[%emt 0:00:54]} 11. Nc3 {[%emt 0:00:31]} f4 {[%emt 0:02:02]} 12. Bd2 {[%emt 0:01:35]} Ndf6 {[%emt 0:17:42]} 13. Nh2 {[%emt 0:03:12]} g5 {[%emt 0:10:36]} 14. Be2 {[%emt 0:02:35]} Qf7 {[%emt 0:00:28]} 15. c5 {[%emt 0:02:49]} h5 {[%emt 0:03:41]} 16. f3 {[%emt 0:02:05]} Qg6 {[%emt 0:02:42]} 17. a4 {[%emt 0:02:42]} Rf7 {[%emt 0:02:07]} 18. c6 {[%emt 0:06:27]} b6 {[%emt 0:13:11]} 19. a5 {[%emt 0:05:04]} Rb8 {[%emt 0:00:18]} 20. axb6 {[%emt 0:06:29]} axb6 {[%emt 0:00:13]} 21. Nb5 {[%emt 0:02:16]} Bh6 {[%emt 0:13:11]} 22. Na7 {[%emt 0:00:52]} g4 {[%emt 0:00:27]} 23. fxg4 {[%emt 0:06:01]} hxg4 {[%emt 0:05:00]} 24. Nxc8 {[%emt 0:06:11]} gxh3 {[%emt 0:02:15]} 25. Bg4 {[%emt 0:00:36]} Rxc8 {[%emt 0:02:33]} 26. Rf2 {[%emt 0:00:46]} Nxg4 {[%emt 0:06:00]} 27. Qxg4 {[%emt 0:00:28]} Qxg4 {[%emt 0:00:10]} 28. Nxg4 {[%emt 0:00:05]} Bg7 {[%emt 0:02:49]} 29. gxh3 {[%emt 0:00:15]} Nf6 {[%emt 0:00:18]} 30. Nxf6+ {[%emt 0:01:14]} Bxf6 {[%emt 0:00:55]} 31. Rg2+ {[%emt 0:01:58]} Kh7 {[%emt 0:02:03]} 32. Rg4 {[%emt 0:01:45]} Rg8 {[%emt 0:02:30]} 33. Kf2 {[%emt 0:01:13]} Rxg4 {[%emt 0:01:26]} 34. hxg4 {[%emt 0:00:06]} Bh4+ {[%emt 0:00:16]} 35. Kf3 {[%emt 0:00:23]} Kg6 {[%emt 0:00:20]} 36. Rh1 {[%emt 0:01:25]} Kg5 {[%emt 0:00:07]} 37. b5 {[%emt 0:00:41]} Rf8 {[%emt 0:02:19]} 38. Bc3 {[%emt 0:02:07]} Ra8 {[%emt 0:00:40]} 39. Ra1 {[%emt 0:00:11]} Rxa1 {[%emt 0:00:32]} 1/2-1/2

[Event "Niedersachsen-ch 2020"]
[Site "Verden-Aller"]
[Date "2020.01.04"]
[Round "6.8"]
[White "Stotyn, Fabian"]
[Black "Ewert, Hannes"]
[Result "1/2-1/2"]
[ECO "E19"]
[WhiteElo "2198"]
[BlackElo "2256"]
[Annotator "ChessBase"]
[PlyCount "43"]
[EventDate "2020.01.02"]
[EventType "swiss"]
[EventCountry "GER"]
[SourceTitle "playchess.com"]
[Source "ChessBase"]
[SourceQuality "1"]
[TimeControl "40/5400+30:1800+30"]

1. Nf3 {[%emt 0:00:00]} Nf6 {[%emt 0:00:07]} 2. d4 {[%emt 0:00:01]} e6 {[%emt 0:00:30]} 3. g3 {[%emt 0:00:00]} b6 {[%emt 0:00:26]} 4. Bg2 {[%emt 0:00:00]} Bb7 5. O-O {[%emt 0:00:00]} Be7 {[%emt 0:00:11]} 6. c4 {[%emt 0:00:23]} O-O {[%emt 0:00:04]} 7. Nc3 {[%emt 0:00:22]} Ne4 {[%emt 0:00:01]} 8. Qc2 {[%emt 0:02:59]} Nxc3 {[%emt 0:00:10]} 9. Qxc3 {[%emt 0:00:13]} Bf6 {[%emt 0:05:53]} 10. Qd3 {[%emt 0:07:10]} Nc6 {[%emt 0:05:59]} 11. Bd2 {[%emt 0:03:06]} d6 {[%emt 0:02:35]} 12. b4 {[%emt 0:00:30]} Qe7 {[%emt 0:00:30]} 13. b5 {[%emt 0:02:08]} Nd8 {[%emt 0:01:02]} 14. e4 e5 {[%emt 0:01:15]} 15. d5 {[%emt 0:01:19]} Bc8 {[%emt 0:00:56]} 16. a4 {[%emt 0:00:32]} Nb7 {[%emt 0:00:58]} 17. a5 {[%emt 0:00:37]} Nc5 {[%emt 0:00:28]} 18. Qc2 {[%emt 0:00:21]} Bd7 {[%emt 0:00:42]} 19. Be3 {[%emt 0:00:13]} g6 {[%emt 0:02:56]} 20. axb6 {[%emt 0:01:53]} axb6 {[%emt 0:00:16]} 21. Bxc5 {[%emt 0:00:08]} dxc5 {[%emt 0:09:31]} 22. Ra2 {[%emt 0:01:44]} 1/2-1/2

[Event "Niedersachsen-ch 2020"]
[Site "Verden-Aller"]
[Date "2020.01.04"]
[Round "6.9"]
[White "Hoellmann, Ludger"]
[Black "Webner, Dennis"]
[Result "1/2-1/2"]
[ECO "A41"]
[WhiteElo "2059"]
[BlackElo "2113"]
[Annotator "NA"]
[PlyCount "50"]
[EventDate "2020.01.02"]
[EventType "swiss"]
[EventCountry "GER"]
[SourceTitle "playchess.com"]
[Source "ChessBase"]
[SourceQuality "1"]
[TimeControl "40/5400+30:1800+30"]

1. Nf3 {[%emt 0:00:00]} d6 {[%emt 0:00:00]} 2. d4 {[%emt 0:00:00]} Bg4 {[%emt 0:00:07]} 3. c4 {[%emt 0:05:20]} Nf6 {[%emt 0:02:22]} 4. Qb3 {[%emt 0:02:14]} Qc8 {[%emt 0:00:54]} 5. h3 {[%emt 0:00:19]} Bxf3 {[%emt 0:03:14]} 6. Qxf3 {[%emt 0:00:31]} Nc6 {[%emt 0:00:36]} 7. e3 {[%emt 0:04:27]} e5 {[%emt 0:00:22]} 8. d5 {[%emt 0:00:16]} e4 {[%emt 0:10:27]} 9. Qf4 {[%emt 0:02:35]} Nb4 {[%emt 0:01:17]} 10. Kd1 {[%emt 0:04:11]} Qd7 {[%emt 0:04:07]} 11. Nc3 {[%emt 0:00:56]} Qe7 {[%emt 0:07:29]} 12. a3 {[%emt 0:00:55]} Na6 {[%emt 0:00:10]} 13. b4 {[%emt 0:00:30]} O-O-O {[%emt 0:05:46]} 14. Bb2 {[%emt 0:00:56]} Nb8 {[%emt 0:06:34]} 15. Kc2 {[%emt 0:08:08]} Nbd7 {[%emt 0:01:24]} 16. Be2 {[%emt 0:00:52]} h6 {[%emt 0:07:13]} 17. h4 {[%emt 0:11:55]} Kb8 {[%emt 0:04:52]} 18. Kb3 {[%emt 0:00:32]} Qe5 {[%emt 0:01:18]} 19. Rad1 {[%emt 0:01:24]} Re8 {[%emt 0:03:39]} 20. Rde1 {[%emt 0:08:56]} Rg8 {[%emt 0:00:57]} 21. Bd1 {[%emt 0:03:31]} g5 {[%emt 0:02:45]} 22. hxg5 {[%emt 0:00:13]} hxg5 {[%emt 0:00:02]} 23. Qxe5 {[%emt 0:03:24]} Nxe5 {[%emt 0:00:13]} 24. Bc2 {[%emt 0:00:16]} Neg4 {[%emt 0:03:23]} 25. Nd1 {[%emt 0:02:07]} Bg7 {[%emt 0:02:17]} 1/2-1/2

[Event "Niedersachsen-ch 2020"]
[Site "Verden-Aller"]
[Date "2020.01.04"]
[Round "6.10"]
[White "Colbow, Collin"]
[Black "Rau, Nikita"]
[Result "1-0"]
[ECO "B24"]
[WhiteElo "2098"]
[BlackElo "1987"]
[Annotator "NA"]
[PlyCount "142"]
[EventDate "2020.01.02"]
[EventType "swiss"]
[EventCountry "GER"]
[SourceTitle "playchess.com"]
[Source "ChessBase"]
[SourceQuality "1"]
[TimeControl "40/5400+30:1800+30"]

1. e4 {[%emt 0:00:00]} c5 {[%emt 0:00:00]} 2. Nc3 {[%emt 0:00:00]} Nc6 {[%emt 0:00:25]} 3. Nf3 {[%emt 0:00:00]} e5 {[%emt 0:01:26]} 4. Bc4 {[%emt 0:00:00]} d6 {[%emt 0:03:50]} 5. d3 {[%emt 0:00:35]} Bg4 {[%emt 0:15:01]} 6. h3 {[%emt 0:04:10]} Be6 {[%emt 0:07:02]} 7. Nd5 {[%emt 0:09:23]} Nd4 {[%emt 0:09:48]} 8. c3 {[%emt 0:05:20]} Nxf3+ {[%emt 0:00:15]} 9. Qxf3 {[%emt 0:00:02]} Ne7 {[%emt 0:01:58]} 10. Bg5 {[%emt 0:04:18]} Qc8 {[%emt 0:15:43]} 11. Bb5+ {[%emt 0:10:04]} Bd7 {[%emt 0:03:00]} 12. Bxd7+ {[%emt 0:01:41]} Qxd7 {[%emt 0:00:24]} 13. Bxe7 {[%emt 0:00:59]} Bxe7 {[%emt 0:00:11]} 14. O-O {[%emt 0:06:05]} O-O {[%emt 0:00:10]} 15. Qg4 {[%emt 0:05:39]} f5 {[%emt 0:03:14]} 16. exf5 {[%emt 0:03:13]} Rae8 17. Ne3 {[%emt 0:07:35]} d5 {[%emt 0:02:52]} 18. f6 {[%emt 0:01:03]} Qxg4 {[%emt 0:00:27]} 19. hxg4 {[%emt 0:03:15]} Bxf6 {[%emt 0:01:12]} 20. Nxd5 {[%emt 0:01:52]} e4 {[%emt 0:00:46]} 21. dxe4 {[%emt 0:01:47]} Rxe4 {[%emt 0:00:21]} 22. f3 {[%emt 0:02:47]} Re2 {[%emt 0:00:12]} 23. Rf2 {[%emt 0:00:17]} Rfe8 {[%emt 0:00:36]} 24. Kf1 {[%emt 0:01:02]} R2e5 {[%emt 0:01:27]} 25. Nxf6+ {[%emt 0:03:22]} gxf6 {[%emt 0:00:08]} 26. Rd1 {[%emt 0:01:16]} c4 {[%emt 0:06:12]} 27. Rfd2 {[%emt 0:02:07]} Kf7 {[%emt 0:09:36]} 28. Rd7+ {[%emt 0:00:22]} R8e7 {[%emt 0:00:29]} 29. Rxe7+ {[%emt 0:01:32]} Rxe7 {[%emt 0:00:03]} 30. Kf2 {[%emt 0:00:39]} Kg6 {[%emt 0:02:32]} 31. f4 {[%emt 0:07:21]} h5 {[%emt 0:05:50]} 32. f5+ {[%emt 0:07:25]} Kg5 {[%emt 0:01:31]} 33. gxh5 {[%emt 0:00:05]} Kxh5 {[%emt 0:00:48]} 34. Rd4 {[%emt 0:06:29]} Rc7 {[%emt 0:02:00]} 35. g4+ {[%emt 0:01:14]} Kg5 {[%emt 0:01:21]} 36. Kf3 {[%emt 0:00:58]} Kh6 {[%emt 0:04:40]} 37. Rd6 {[%emt 0:01:41]} Kg5 {[%emt 0:01:16]} 38. Rd8 {[%emt 0:00:21]} Kh6 {[%emt 0:01:21]} 39. Kf4 {[%emt 0:02:49]} Rc6 {[%emt 0:00:36]} 40. Rh8+ {[%emt 0:00:29]} Kg7 {[%emt 0:00:13]} 41. Rh2 {[%emt 0:01:12]} a5 {[%emt 0:03:21]} 42. g5 {[%emt 0:02:19]} fxg5+ {[%emt 0:00:42]} 43. Kxg5 {[%emt 0:00:07]} Rc5 {[%emt 0:00:33]} 44. Rd2 {[%emt 0:09:14]} Rb5 {[%emt 0:01:54]} 45. a4 {[%emt 0:05:59]} Rb6 {[%emt 0:01:44]} 46. Rh2 {[%emt 0:03:59]} Kf7 {[%emt 0:05:11]} 47. Kf4 {[%emt 0:00:49]} Rb3 {[%emt 0:00:16]} 48. Ke5 {[%emt 0:03:56]} b5 {[%emt 0:00:26]} 49. Kd4 {[%emt 0:01:41]} bxa4 {[%emt 0:00:32]} 50. Kxc4 {[%emt 0:00:06]} Kf6 {[%emt 0:00:35]} 51. Rf2 {[%emt 0:00:10]} Rb8 {[%emt 0:05:39]} 52. Kc5 {[%emt 0:00:26]} Rc8+ {[%emt 0:01:26]} 53. Kb5 {[%emt 0:00:10]} a3 {[%emt 0:00:21]} 54. bxa3 {[%emt 0:00:08]} Rxc3 {[%emt 0:00:11]} 55. a4 Rc8 {[%emt 0:03:36]} 56. Kxa5 {[%emt 0:00:13]} Ra8+ {[%emt 0:00:08]} 57. Kb5 {[%emt 0:00:38]} Rb8+ {[%emt 0:00:07]} 58. Kc6 {[%emt 0:01:48]} Ra8 {[%emt 0:00:26]} 59. Ra2 {[%emt 0:00:58]} Rc8+ {[%emt 0:03:13]} 60. Kb7 {[%emt 0:00:40]} Rc1 {[%emt 0:01:33]} 61. Rf2 {[%emt 0:05:21]} Rb1+ {[%emt 0:02:32]} 62. Ka6 {[%emt 0:00:46]} Rb4 {[%emt 0:01:21]} 63. a5 {[%emt 0:00:06]} Rb1 {[%emt 0:00:09]} 64. Ka7 {[%emt 0:00:05]} Rb5 {[%emt 0:03:12]} 65. a6 {[%emt 0:00:05]} Rb1 {[%emt 0:01:10]} 66. Ka8 {[%emt 0:00:08]} Rb3 {[%emt 0:01:21]} 67. a7 {[%emt 0:00:19]} Rb1 68. Rc2 {[%emt 0:01:01]} Kxf5 {[%emt 0:01:31]} 69. Rc8 {[%emt 0:00:11]} Ke6 {[%emt 0:00:53]} 70. Rb8 {[%emt 0:00:04]} Rh1 {[%emt 0:00:34]} 71. Kb7 {[%emt 0:00:05]} Kd5 1-0

[Event "Niedersachsen-ch 2020"]
[Site "Verden-Aller"]
[Date "2020.01.04"]
[Round "6.11"]
[White "Schumacher, Klaus"]
[Black "Santos, Jose"]
[Result "1/2-1/2"]
[ECO "D74"]
[WhiteElo "1680"]
[BlackElo "1771"]
[Annotator "NA"]
[PlyCount "56"]
[EventDate "2020.01.02"]
[EventType "swiss"]
[EventCountry "GER"]
[SourceTitle "playchess.com"]
[Source "ChessBase"]
[SourceQuality "1"]
[TimeControl "40/5400+30:1800+30"]

1. c4 {[%emt 0:00:00]} Nf6 {[%emt 0:00:00]} 2. g3 {[%emt 0:00:00]} d5 {[%emt 0:00:04]} 3. cxd5 {[%emt 0:00:00]} Nxd5 {[%emt 0:00:07]} 4. d4 {[%emt 0:01:22]} g6 {[%emt 0:00:30]} 5. Bg2 {[%emt 0:00:12]} Bg7 {[%emt 0:00:25]} 6. Nf3 {[%emt 0:01:16]} O-O {[%emt 0:01:47]} 7. O-O {[%emt 0:02:06]} c6 {[%emt 0:06:47]} 8. e4 {[%emt 0:03:59]} Nb6 {[%emt 0:02:32]} 9. Nc3 {[%emt 0:01:12]} Bg4 {[%emt 0:01:44]} 10. Be3 {[%emt 0:06:10]} Nc4 {[%emt 0:06:37]} 11. Qb3 {[%emt 0:03:18]} Nxe3 {[%emt 0:11:35]} 12. fxe3 {[%emt 0:00:10]} Qb6 {[%emt 0:00:40]} 13. Qc4 {[%emt 0:11:17]} Bh6 {[%emt 0:03:27]} 14. Ne5 {[%emt 0:18:30]} Bxe3+ {[%emt 0:07:10]} 15. Kh1 {[%emt 0:00:08]} Be6 {[%emt 0:00:52]} 16. d5 {[%emt 0:00:09]} cxd5 {[%emt 0:03:04]} 17. exd5 {[%emt 0:07:21]} Bf5 {[%emt 0:06:45]} 18. g4 {[%emt 0:03:20]} Nd7 {[%emt 0:20:18]} 19. Nxf7 {[%emt 0:04:18]} Rac8 {[%emt 0:01:47]} 20. Qe2 {[%emt 0:05:13]} Rxf7 {[%emt 0:03:27]} 21. gxf5 {[%emt 0:02:32]} Nf6 {[%emt 0:01:22]} 22. fxg6 {[%emt 0:01:05]} hxg6 {[%emt 0:00:01]} 23. d6 {[%emt 0:01:52]} Bc5 {[%emt 0:01:05]} 24. Nd5 {[%emt 0:02:10]} Qxd6 {[%emt 0:00:50]} 25. Nxf6+ {[%emt 0:01:47]} Rxf6 {[%emt 0:00:52]} 26. Rxf6 {[%emt 0:01:58]} exf6 {[%emt 0:01:59]} 27. Rd1 {[%emt 0:01:26]} Qe5 {[%emt 0:03:02]} 28. Qg4 {[%emt 0:04:00]} Qf5 {[%emt 0:04:10]} 1/2-1/2

[Event "Niedersachsen-ch 2020"]
[Site "Verden-Aller"]
[Date "2020.01.04"]
[Round "6.12"]
[White "Korb, Ruben"]
[Black "Wetjen, Fabian"]
[Result "0-1"]
[ECO "C02"]
[WhiteElo "1709"]
[BlackElo "1748"]
[Annotator "NA"]
[PlyCount "68"]
[EventDate "2020.01.02"]
[EventType "swiss"]
[EventCountry "GER"]
[SourceTitle "playchess.com"]
[Source "ChessBase"]
[SourceQuality "1"]
[TimeControl "40/5400+30:1800+30"]

1. e4 {[%emt 0:00:00]} e6 {[%emt 0:00:00]} 2. d4 {[%emt 0:01:34]} d5 {[%emt 0:00:00]} 3. e5 {[%emt 0:00:28]} c5 {[%emt 0:00:00]} 4. Nf3 {[%emt 0:02:01]} cxd4 {[%emt 0:01:15]} 5. Nxd4 {[%emt 0:00:30]} Nc6 {[%emt 0:01:39]} 6. Bb5 {[%emt 0:01:54]} Bd7 {[%emt 0:03:57]} 7. f4 {[%emt 0:09:12]} Nxd4 {[%emt 0:03:23]} 8. Bxd7+ {[%emt 0:00:13]} Qxd7 {[%emt 0:00:08]} 9. Qxd4 {[%emt 0:00:06]} Ne7 {[%emt 0:10:56]} 10. Nd2 {[%emt 0:06:45]} Nc6 {[%emt 0:01:49]} 11. Qd3 {[%emt 0:00:32]} Nb4 {[%emt 0:02:33]} 12. Qb3 {[%emt 0:00:16]} Rc8 {[%emt 0:07:57]} 13. c4 {[%emt 0:04:08]} b5 {[%emt 0:00:39]} 14. Nf3 {[%emt 0:10:12]} bxc4 {[%emt 0:10:39]} 15. Qc3 {[%emt 0:02:05]} Nd3+ {[%emt 0:00:13]} 16. Ke2 {[%emt 0:00:50]} Bb4 {[%emt 0:04:55]} 17. Qc2 {[%emt 0:00:16]} d4 {[%emt 0:06:29]} 18. Bd2 {[%emt 0:10:22]} Nxf4+ {[%emt 0:02:06]} 19. Kf1 {[%emt 0:00:28]} d3 {[%emt 0:01:20]} 20. Qd1 {[%emt 0:02:50]} Bxd2 {[%emt 0:01:01]} 21. Qxd2 {[%emt 0:00:03]} Ne2 {[%emt 0:03:00]} 22. Rd1 {[%emt 0:08:21]} O-O {[%emt 0:09:29]} 23. Kf2 {[%emt 0:01:33]} Nd4 {[%emt 0:05:53]} 24. Rhe1 {[%emt 0:06:30]} Nxf3 {[%emt 0:01:19]} 25. gxf3 {[%emt 0:00:16]} Qd4+ {[%emt 0:02:05]} 26. Kg2 {[%emt 0:01:09]} f5 {[%emt 0:07:03]} 27. Rc1 {[%emt 0:09:28]} Rb8 {[%emt 0:02:01]} 28. Rc3 {[%emt 0:00:08]} Rfd8 {[%emt 0:02:47]} 29. f4 {[%emt 0:03:44]} g5 {[%emt 0:02:39]} 30. fxg5 {[%emt 0:01:57]} Qg4+ {[%emt 0:00:23]} 31. Kh1 {[%emt 0:00:30]} Qf3+ {[%emt 0:01:00]} 32. Kg1 {[%emt 0:00:53]} Rd4 {[%emt 0:00:41]} 33. Qf2 {[%emt 0:01:52]} Rg4+ {[%emt 0:00:18]} 34. Kf1 {[%emt 0:00:04]} Qh1+ {[%emt 0:00:13] Rcc1} 0-1

[Event "Niedersachsen-ch 2020"]
[Site "Verden-Aller"]
[Date "2020.01.05"]
[Round "7.1"]
[White "Voege, Tobias"]
[Black "Mueer, Sebastian"]
[Result "1-0"]
[ECO "E61"]
[WhiteElo "2310"]
[BlackElo "2223"]
[Annotator "RC"]
[PlyCount "49"]
[EventDate "2020.01.02"]
[EventType "swiss"]
[EventCountry "GER"]
[SourceTitle "playchess.com"]
[Source "ChessBase"]
[SourceQuality "1"]
[TimeControl "40/5400+30:1800+30"]

1. d4 {[%emt 0:00:00]} Nf6 {[%emt 0:00:00]} 2. c4 {[%emt 0:00:00]} g6 {[%emt 0:00:00]} 3. Nc3 {[%emt 0:00:00]} Bg7 {[%emt 0:00:00]} 4. Nf3 {[%emt 0:00:00]} O-O {[%emt 0:00:06]} 5. Bg5 {[%emt 0:00:00]} h6 {[%emt 0:00:10]} 6. Bh4 {[%emt 0:00:00]} c5 {[%emt 0:00:09]} 7. d5 {[%emt 0:00:00]} d6 {[%emt 0:00:10]} 8. e3 {[%emt 0:00:07]} Bf5 {[%emt 0:00:08]} 9. Bd3 {[%emt 0:00:42]} Bxd3 {[%emt 0:00:09]} 10. Qxd3 {[%emt 0:00:03]} Nbd7 {[%emt 0:14:20]} 11. O-O {[%emt 0:00:32]} a6 {[%emt 0:02:10]} 12. a4 {[%emt 0:07:49]} g5 {[%emt 0:01:11]} 13. Bg3 {[%emt 0:00:24]} Nh5 {[%emt 0:00:09]} 14. Ne2 {[%emt 0:15:51]} b5 {[%emt 0:09:02]} 15. axb5 {[%emt 0:14:41]} axb5 {[%emt 0:00:11]} 16. Rxa8 {[%emt 0:00:51]} Qxa8 {[%emt 0:00:02]} 17. cxb5 {[%emt 0:14:36]} Bxb2 {[%emt 0:18:14]} 18. Qf5 {[%emt 0:05:46]} Qc8 {[%emt 0:08:51]} 19. Qe4 {[%emt 0:14:10]} Bf6 {[%emt 0:14:46]} 20. h4 {[%emt 0:04:28]} Nb6 {[%emt 0:00:01]} 21. hxg5 {[%emt 0:04:08]} hxg5 {[%emt 0:01:52]} 22. Nh2 {[%emt 0:00:31]} Ng7 {[%emt 0:02:45]} 23. Ng4 {[%emt 0:02:18]} Qb7 {[%emt 0:08:59]} 24. Bxd6 {[%emt 0:01:31]} Rd8 {[%emt 0:01:54]} 25. Nh6+ {[%emt 0:03:28]} 1-0

[Event "Niedersachsen-ch 2020"]
[Site "Verden-Aller"]
[Date "2020.01.05"]
[Round "7.2"]
[White "Abel, Dennes"]
[Black "Hampel, Felix"]
[Result "1/2-1/2"]
[ECO "D14"]
[WhiteElo "2463"]
[BlackElo "2290"]
[Annotator "ChessBase"]
[PlyCount "25"]
[EventDate "2020.01.02"]
[EventType "swiss"]
[EventCountry "GER"]
[SourceTitle "playchess.com"]
[Source "ChessBase"]
[SourceQuality "1"]
[TimeControl "40/5400+30:1800+30"]

1. d4 {[%emt 0:00:00]} d5 {[%emt 0:00:00]} 2. c4 {[%emt 0:00:00]} c6 {[%emt 0:00:00]} 3. cxd5 {[%emt 0:00:26]} cxd5 {[%emt 0:00:00]} 4. Nc3 {[%emt 0:00:06]} Nf6 {[%emt 0:00:00]} 5. Bf4 {[%emt 0:00:20]} Nc6 {[%emt 0:00:15]} 6. e3 {[%emt 0:00:25]} Bf5 {[%emt 0:00:14]} 7. Nf3 {[%emt 0:00:23]} e6 {[%emt 0:01:53]} 8. Qb3 {[%emt 0:01:17]} Bb4 {[%emt 0:00:49]} 9. Ne5 {[%emt 0:00:11]} Qa5 {[%emt 0:11:09]} 10. a3 {[%emt 0:21:15]} Bxc3+ {[%emt 0:03:08]} 11. Qxc3 {[%emt 0:06:08]} Qxc3+ {[%emt 0:09:38]} 12. bxc3 {[%emt 0:00:16]} Na5 {[%emt 0:01:13]} 13. c4 {[%emt 0:18:53]} 1/2-1/2

[Event "Niedersachsen-ch 2020"]
[Site "Verden-Aller"]
[Date "2020.01.05"]
[Round "7.3"]
[White "Hoerstmann, Rudi"]
[Black "Riemay, David"]
[Result "0-1"]
[ECO "D35"]
[WhiteElo "2241"]
[BlackElo "2139"]
[Annotator "NA"]
[PlyCount "74"]
[EventDate "2020.01.02"]
[EventType "swiss"]
[EventCountry "GER"]
[SourceTitle "playchess.com"]
[Source "ChessBase"]
[SourceQuality "1"]
[TimeControl "40/5400+30:1800+30"]

1. d4 {[%emt 0:00:00]} d5 {[%emt 0:00:00]} 2. c4 {[%emt 0:00:00]} e6 {[%emt 0:00:00]} 3. Nc3 {[%emt 0:00:00]} Nf6 {[%emt 0:00:00]} 4. cxd5 {[%emt 0:00:00]} exd5 {[%emt 0:00:00]} 5. Bg5 {[%emt 0:00:02]} c6 {[%emt 0:00:00]} 6. e3 {[%emt 0:00:44]} Be6 {[%emt 0:00:00]} 7. Bd3 {[%emt 0:00:49]} Nbd7 {[%emt 0:00:08]} 8. Qc2 {[%emt 0:00:28]} h6 {[%emt 0:00:06]} 9. Bh4 {[%emt 0:00:31]} g5 {[%emt 0:00:05]} 10. Bg3 {[%emt 0:00:11]} Nh5 {[%emt 0:00:08]} 11. Nge2 {[%emt 0:02:28]} Nxg3 {[%emt 0:00:06]} 12. Nxg3 {[%emt 0:00:26]} h5 {[%emt 0:00:06]} 13. O-O-O {[%emt 0:01:38]} Qf6 {[%emt 0:02:02]} 14. Nf5 {[%emt 0:22:49]} O-O-O {[%emt 0:03:44]} 15. g3 {[%emt 0:08:05]} Kb8 {[%emt 0:02:31]} 16. Kb1 {[%emt 0:00:23]} Rc8 {[%emt 0:00:29]} 17. h3 {[%emt 0:16:51]} c5 $11 {[%emt 0:01:37]} 18. dxc5 {[%emt 0:07:06]} Bxc5 19. Nd4 {[%emt 0:10:15]} Ne5 {[%emt 0:09:39]} 20. Ka1 {[%emt 0:05:07]} Bxd4 {[%emt 0:05:54]} 21. exd4 {[%emt 0:00:08]} Nf3 {[%emt 0:01:22]} 22. Bf1 {[%emt 0:10:11]} Nxd4 {[%emt 0:02:18]} 23. Qd2 {[%emt 0:01:58]} Nf3 {[%emt 0:02:13]} 24. Qd3 {[%emt 0:00:14]} d4 {[%emt 0:08:07]} 25. Ne4 {[%emt 0:00:47]} Qf5 {[%emt 0:00:05]} 26. Bg2 {[%emt 0:01:41]} Qa5 {[%emt 0:10:37]} 27. Qb1 {[%emt 0:00:23]} Ne5 {[%emt 0:01:54]} 28. Nd6 {[%emt 0:06:03]} Rc2 {[%emt 0:07:33]} 29. Rxd4 {[%emt 0:00:21]} Rxf2 {[%emt 0:01:34]} 30. Bxb7 {[%emt 0:00:05]} Rd8 {[%emt 0:01:38]} 31. Be4 {[%emt 0:02:24]} Rxd6 {[%emt 0:08:15]} 32. Rxd6 {[%emt 0:00:02]} Nc4 {[%emt 0:00:08]} 33. Rxe6 {[%emt 0:01:49]} fxe6 {[%emt 0:00:41]} 34. Qd3 {[%emt 0:00:31]} Rxb2 {[%emt 0:04:58]} 35. Qxc4 {[%emt 0:00:22]} Qe5 {[%emt 0:00:02]} 36. Rc1 {[%emt 0:02:36]} Rc2+ {[%emt 0:00:11]} 37. Kb1 {[%emt 0:00:26]} Qb2# {[%emt 0:00:05]} 0-1